bitfinex-derivatives/quotes_BTCF0:USTF0_20250327
["timestamp","ask_amount","ask_price","bid_price","bid_amount"]
[1743082117469,0.39314241,86397.0,86396.0,0.00144]
[1743082117873,0.1157464,86394.0,86393.0,8e-05]
[1743082118069,0.11634641,86394.0,86393.0,0.1158278]
[1743082118266,0.11634641,86394.0,86393.0,0.00144]
[1743082118466,0.11634641,86394.0,86393.0,0.1171878]
[1743082119277,0.11934641,86394.0,86393.0,0.00144]
[1743082119470,0.1157491,86393.0,86392.0,0.1157486]
[1743082119771,0.2949091,86393.0,86392.0,0.1171086]
[1743082120168,0.17916,86393.0,86392.0,0.1171086]
[1743082120368,0.17916,86393.0,86392.0,0.2920086]
[1743082120877,0.08966,86393.0,86392.0,0.2920086]
[1743082121073,0.00136,86393.0,86392.0,0.2930086]
[1743082121674,0.00136,86393.0,86392.0,0.2920086]
[1743082121879,0.1171078,86393.0,86392.0,0.2930086]
[1743082122079,0.00136,86393.0,86392.0,0.2930086]
[1743082122275,0.0578711,86398.0,86397.0,0.1736102]
[1743082122485,0.05847111,86398.0,86397.0,0.1749702]
[1743082122680,0.00060001,86398.0,86397.0,0.1749702]
[1743082122873,0.1,86400.0,86399.0,0.1157397]
[1743082123175,0.10060001,86400.0,86399.0,0.4778997]
[1743082123380,0.21633841,86400.0,86399.0,0.4778997]
[1743082123675,0.30733841,86400.0,86399.0,0.36216]
[1743082123866,0.39903841,86400.0,86399.0,0.4778997]
[1743082125074,0.40203841,86400.0,86399.0,0.4778997]
[1743082125672,0.40203841,86400.0,86399.0,0.6737672]
[1743082126270,0.28630001,86400.0,86399.0,0.6737672]
[1743082126667,0.40203841,86400.0,86399.0,0.6737672]
[1743082128575,0.28630001,86400.0,86399.0,0.6737672]
[1743082130181,0.50203841,86400.0,86399.0,0.6737672]
[1743082130580,0.50203841,86400.0,86399.0,0.0098275]
[1743082130971,0.38630001,86400.0,86399.0,0.2132672]
[1743082131175,0.50203841,86400.0,86399.0,0.1255672]
[1743082132880,0.50203841,86400.0,86399.0,0.0098275]
[1743082133185,0.50203841,86400.0,86399.0,0.1255672]
[1743082134079,0.50203841,86400.0,86399.0,0.3077672]
[1743082134384,0.50203841,86400.0,86399.0,0.2135672]
[1743082137386,0.50203841,86400.0,86399.0,0.0978275]
[1743082138187,0.51364759,86400.0,86399.0,0.0978275]
[1743082138689,0.51364759,86400.0,86397.0,8e-05]
[1743082138690,0.1157411,86398.0,86397.0,8e-05]
[1743082138880,0.1157504,86391.0,86390.0,0.2051507]
[1743082139079,0.1166704,86391.0,86390.0,0.2060707]
[1743082139474,0.1166704,86391.0,86390.0,0.3009707]
[1743082140179,0.00092,86391.0,86390.0,0.3009707]
[1743082140381,0.1157504,86391.0,86390.0,0.3009707]
[1743082140682,0.103,86400.0,86390.0,0.18522]
[1743082140896,0.10392,86400.0,86399.0,0.1157397]
[1743082141078,0.10192,86400.0,86399.0,0.1166597]
[1743082141275,0.10092,86400.0,86399.0,0.3065597]
[1743082142385,0.10092,86400.0,86399.0,0.31509822]
[1743082142588,0.0004,86417.0,86416.0,0.1157169]
[1743082142782,0.3608,86438.0,86432.0,0.1156955]
[1743082142979,0.11729421,86433.0,86432.0,0.1168955]
[1743082143183,0.11729421,86433.0,86432.0,0.0012]
[1743082143486,0.1157049,86425.0,86424.0,0.3608]
[1743082143689,0.11694491,86425.0,86424.0,0.4777462]
[1743082144087,0.11694491,86425.0,86424.0,0.6615462]
[1743082144680,0.00124001,86425.0,86424.0,0.6615462]
[1743082144886,0.1156965,86432.0,86429.0,0.0578494]
[1743082145187,0.11629651,86432.0,86431.0,0.3608]
[1743082145381,0.21549651,86432.0,86431.0,0.362]
[1743082146585,0.31549651,86432.0,86431.0,0.4776969]
[1743082147390,0.32049651,86432.0,86431.0,0.362]
[1743082147591,0.32049651,86432.0,86431.0,0.4776969]
[1743082147895,0.22449651,86432.0,86431.0,0.362]
[1743082148086,0.21949651,86432.0,86431.0,0.362]
[1743082148290,0.22449651,86432.0,86431.0,0.4776969]
[1743082148480,0.32449651,86432.0,86431.0,0.4776969]
[1743082148884,0.32449651,86432.0,86431.0,0.5687969]
[1743082149478,0.32449651,86432.0,86431.0,0.4776969]
[1743082149680,0.33584227,86432.0,86431.0,0.362]
[1743082150087,0.42834227,86432.0,86431.0,0.362]
[1743082150386,0.32834227,86432.0,86431.0,0.4776969]
[1743082150702,0.31699651,86432.0,86431.0,0.4776969]
[1743082151597,0.41699651,86432.0,86431.0,0.4776969]
[1743082151889,0.42836791,86432.0,86431.0,0.0012]
[1743082152091,0.1157062,86424.0,86423.0,0.3608]
[1743082152288,0.11630621,86424.0,86423.0,0.36164]
[1743082153196,0.21630621,86424.0,86423.0,0.36164]
[1743082153390,0.1157156,86417.0,86416.0,0.3608]
[1743082153587,0.1157156,86417.0,86416.0,0.36144]
[1743082153889,0.11631561,86417.0,86416.0,0.36144]
[1743082154292,0.11631561,86417.0,86416.0,0.4771569]
[1743082154797,0.21631561,86417.0,86416.0,0.6660569]
[1743082155188,0.21631561,86417.0,86416.0,0.36144]
[1743082155390,0.21831561,86417.0,86416.0,0.00064]
[1743082155587,0.1157223,86412.0,86411.0,0.1158036]
[1743082155788,0.1163623,86412.0,86411.0,0.1163236]
[1743082155995,0.2119623,86412.0,86411.0,0.1163236]
[1743082156192,0.2119623,86412.0,86411.0,0.0006]
[1743082156393,0.22336372,86412.0,86411.0,0.0006]
[1743082157396,0.1157263,86409.0,86408.0,0.0001736]
[1743082157598,0.115737,86401.0,86400.0,1e-07]
[1743082157795,0.1157545,86388.0,86387.0,0.20675868]
[1743082157995,0.1157558,86387.0,86386.0,0.32251578]
[1743082158301,0.2124758,86387.0,86386.0,0.20743868]
[1743082159401,0.22431337,86387.0,86386.0,0.20743868]
[1743082159597,0.1157625,86382.0,86381.0,0.2770385]
[1743082159796,0.47752251,86382.0,86381.0,0.2779985]
[1743082160391,0.57352251,86382.0,86381.0,0.2779985]
[1743082160598,0.21272251,86382.0,86381.0,0.2779985]
[1743082161195,0.21272251,86382.0,86381.0,0.2809985]
[1743082161996,0.31272251,86382.0,86381.0,0.00396]
[1743082162191,0.31272251,86382.0,86381.0,0.003]
[1743082162397,0.31272251,86382.0,86381.0,0.005]
[1743082163303,0.40742251,86382.0,86381.0,0.005]
[1743082163909,0.1157746,86373.0,86372.0,8e-05]
[1743082164106,0.11673461,86373.0,86372.0,8e-05]
[1743082164310,0.1157866,86364.0,86363.0,0.3608]
[1743082164604,0.11674661,86364.0,86363.0,0.477628]
[1743082166394,0.21604661,86364.0,86363.0,0.36184]
[1743082167008,0.1157973,86356.0,86355.0,0.0001736]
[1743082167300,1e-08,86356.0,86355.0,0.4767723]
[1743082167493,0.4186742,86393.0,86355.0,0.37324084]
[1743082167494,0.3608,86385.0,86355.0,0.37324084]
[1743082167696,0.2430172,86371.0,86370.0,0.3608]
[1743082167903,0.2430172,86371.0,86370.0,0.3614]
[1743082167904,0.24361721,86371.0,86370.0,0.3614]
[1743082168209,0.43501721,86371.0,86370.0,0.0006]
[1743082168509,0.1157973,86356.0,86355.0,1e-07]
[1743082168699,0.1158282,86333.0,86322.0,0.0981]
[1743082168900,0.2443882,86333.0,86332.0,0.36176]
[1743082169105,0.2443882,86333.0,86332.0,0.00096]
[1743082169306,0.115843,86322.0,86314.0,0.34537127]
[1743082169509,0.605243,86322.0,86321.0,0.28941554]
[1743082169698,0.477643,86322.0,86321.0,0.28941554]
[1743082169899,0.00017371,86330.0,86323.0,0.0579207]
[1743082170100,0.00017371,86330.0,86329.0,0.4766336]
[1743082170307,0.00017371,86330.0,86329.0,0.3773136]
[1743082170502,0.00017371,86330.0,86329.0,0.1165136]
[1743082170705,0.11668591,86330.0,86329.0,0.1165136]
[1743082171203,0.11668591,86330.0,86329.0,0.1205136]
[1743082171405,0.11668591,86330.0,86329.0,0.00468]
[1743082171609,0.00085371,86330.0,86329.0,0.1198336]
[1743082171906,0.11600591,86330.0,86329.0,0.1194336]
[1743082172207,0.11668591,86330.0,86329.0,0.1224336]
[1743082172707,0.11668591,86330.0,86305.0,0.12816]
[1743082172708,0.1158456,86320.0,86316.0,0.00016]
[1743082172908,0.2448856,86320.0,86319.0,0.116607]
[1743082173110,0.2448856,86320.0,86319.0,0.117207]
[1743082173615,0.2448856,86320.0,86319.0,0.116527]
[1743082173920,0.115847,86319.0,86318.0,0.0933]
[1743082174116,0.307447,86319.0,86318.0,0.2091483]
[1743082174803,0.307447,86319.0,86318.0,0.0933]
[1743082175200,0.407447,86319.0,86318.0,0.0953]
[1743082176909,0.215847,86319.0,86318.0,0.0953]
[1743082178815,0.216687,86319.0,86318.0,0.0959]
[1743082179219,0.307987,86319.0,86318.0,0.0953]
[1743082179414,0.307987,86319.0,86318.0,0.0959]
[1743082179616,0.10084,86319.0,86318.0,0.2117483]
[1743082180022,0.00017371,86330.0,86329.0,0.1158336]
[1743082180210,0.0579019,86352.0,86342.0,0.173723]
[1743082180211,0.1158148,86343.0,86342.0,0.173723]
[1743082180412,0.1166548,86343.0,86342.0,0.174363]
[1743082180925,0.1166548,86343.0,86342.0,0.00064]
[1743082181116,0.1166548,86343.0,86342.0,0.1164561]
[1743082181434,0.1166548,86343.0,86342.0,0.00064]
[1743082181611,0.2206548,86343.0,86342.0,0.1164561]
[1743082182817,0.2166548,86343.0,86342.0,0.1164561]
[1743082183411,0.2216548,86343.0,86342.0,0.1164561]
[1743082183820,0.10584,86343.0,86342.0,0.1164561]
[1743082184121,0.00017371,86351.0,86342.0,0.00064]
[1743082184417,0.13593922,86362.0,86361.0,0.1157906]
[1743082184623,0.13653923,86362.0,86361.0,0.6042306]
[1743082184820,0.0578888,86371.0,86368.0,0.1157813]
[1743082185021,0.00060001,86369.0,86368.0,0.1163813]
[1743082185222,0.10165732,86380.0,86379.0,0.1157665]
[1743082185519,0.21802253,86380.0,86379.0,0.0006]
[1743082185712,0.21802253,86380.0,86379.0,0.1905]
[1743082185911,0.57882253,86380.0,86379.0,0.1905]
[1743082186216,0.1736699,86369.0,86368.0,8e-05]
[1743082186515,0.1745499,86369.0,86368.0,0.1165413]
[1743082186721,0.1745499,86369.0,86368.0,0.00076]
[1743082186922,0.1745499,86369.0,86368.0,0.19066]
[1743082187111,0.1745499,86369.0,86368.0,0.3064413]
[1743082187714,0.20165732,86380.0,86368.0,0.55146]
[1743082187909,0.057884,86378.0,86377.0,0.1157665]
[1743082188110,0.00068,86378.0,86377.0,0.6039265]
[1743082188314,0.1164479,86378.0,86377.0,0.48816]
[1743082188727,0.00068,86378.0,86377.0,0.6039265]
[1743082189129,0.00068,86378.0,86377.0,0.6059265]
[1743082189322,0.1164479,86378.0,86377.0,0.6059265]
[1743082189628,0.2164079,86378.0,86377.0,0.6059265]
[1743082189824,0.2164079,86378.0,86377.0,0.4792065]
[1743082190022,0.2164079,86378.0,86377.0,0.6056465]
[1743082190225,0.2164079,86378.0,86377.0,0.36344]
[1743082190419,0.2164079,86378.0,86377.0,0.1184092]
[1743082190921,0.10064,86378.0,86377.0,0.1204092]
[1743082191123,0.2164079,86378.0,86377.0,0.00464]
[1743082191525,0.2164079,86378.0,86377.0,0.00364]
[1743082191720,0.2164079,86378.0,86377.0,0.1174092]
[1743082191925,0.3608,86403.0,86387.0,0.1157558]
[1743082192120,0.1157528,86390.0,86389.0,0.1157507]
[1743082192314,0.1157528,86390.0,86389.0,0.1166307]
[1743082192622,0.00092,86390.0,86389.0,0.2434707]
[1743082192828,0.00092,86390.0,86389.0,0.1166307]
[1743082193025,0.00092,86390.0,86389.0,0.2435507]
[1743082193219,0.1157518,86390.0,86389.0,0.2435507]
[1743082193429,0.1157531,86389.0,86388.0,0.0993]
[1743082193625,0.1157531,86389.0,86388.0,0.2150545]
[1743082194129,0.1157531,86389.0,86388.0,0.3419745]
[1743082195030,0.1157531,86389.0,86388.0,0.2150545]
[1743082195329,0.2157531,86389.0,86388.0,0.3417745]
[1743082195516,0.2157531,86389.0,86388.0,0.3437745]
[1743082195722,0.2157531,86389.0,86388.0,0.3436945]
[1743082195922,0.2157531,86389.0,86388.0,0.3446945]
[1743082196227,0.2157531,86389.0,86388.0,0.2180545]
[1743082196622,0.2157531,86389.0,86388.0,0.1023]
[1743082196829,0.2157531,86389.0,86388.0,0.22878]
[1743082197330,0.2157531,86389.0,86388.0,0.3445345]
[1743082197729,0.2157531,86389.0,86388.0,0.3435345]
[1743082197925,0.2157531,86389.0,86388.0,0.2170545]
[1743082198127,0.2166731,86389.0,86388.0,0.10122]
[1743082198628,0.10092,86389.0,86383.0,8e-05]
[1743082198831,0.1736403,86384.0,86383.0,0.0006]
[1743082199026,0.1157625,86382.0,86381.0,0.00017371]
[1743082199219,0.115788,86363.0,86362.0,0.0932]
[1743082199422,0.1157973,86356.0,86355.0,0.0017369]
[1743082199627,0.00088,86356.0,86355.0,0.1282569]
[1743082199838,0.1157946,86360.0,86359.0,0.0578964]
[1743082200132,0.1157947,86358.0,86357.0,0.0932]
[1743082200336,0.0946,86383.0,86357.0,0.0006]
[1743082200631,0.1157947,86358.0,86357.0,0.0006]
[1743082200835,0.1166747,86358.0,86357.0,0.1736937]
[1743082201027,0.00088,86358.0,86357.0,0.0586977]
[1743082201233,0.1157947,86358.0,86357.0,0.0586977]
[1743082201431,0.1165947,86358.0,86357.0,0.0008]
[1743082201628,0.2165947,86358.0,86357.0,0.0028]
[1743082202136,0.1158041,86351.0,86349.0,0.00017371]
[1743082202322,0.1158054,86350.0,86349.0,0.00017371]
[1743082202527,0.1158054,86350.0,86331.0,0.0579148]
[1743082202528,0.1158148,86343.0,86342.0,8e-05]
[1743082202729,0.1158309,86331.0,86330.0,0.3928697]
[1743082202938,0.1158309,86331.0,86330.0,0.3934697]
[1743082203127,0.11687091,86331.0,86330.0,0.3934697]
[1743082203433,0.11687091,86331.0,86330.0,0.2776385]
[1743082203836,0.20917091,86331.0,86330.0,0.2776385]
[1743082204027,0.00104001,86331.0,86330.0,0.7542707]
[1743082204227,0.1158309,86331.0,86330.0,0.9132858]
[1743082204734,0.1158309,86331.0,86330.0,0.6362473]
[1743082205034,0.1158309,86331.0,86325.0,8e-05]
[1743082205035,0.46284001,86331.0,86325.0,8e-05]
[1743082205238,0.1158685,86303.0,86287.0,0.2770385]
[1743082205431,0.47806851,86303.0,86287.0,0.2770385]
[1743082205635,0.1158886,86288.0,86287.0,0.2770385]
[1743082205937,0.11729681,86288.0,86287.0,0.3935376]
[1743082206136,0.13179735,86288.0,86287.0,0.2776385]
[1743082206340,0.58629735,86288.0,86287.0,0.2776385]
[1743082206637,0.68129735,86288.0,86287.0,0.2770385]
[1743082206840,0.80989736,86288.0,86287.0,0.2776385]
[1743082207035,0.66775682,86288.0,86287.0,0.39294]
[1743082207232,0.66775682,86288.0,86287.0,0.39362]
[1743082207424,0.66775682,86288.0,86287.0,0.2777185]
[1743082207631,1.02855682,86288.0,86287.0,0.2777185]
[1743082208129,1.02855682,86288.0,86287.0,0.2770385]
[1743082208936,1.02955682,86288.0,86287.0,0.2770385]
[1743082209137,1.02955682,86288.0,86280.0,0.34537127]
[1743082209138,0.1159096,86281.0,86280.0,0.34537127]
[1743082209324,0.47766961,86281.0,86280.0,0.34597127]
[1743082209724,0.57166961,86281.0,86280.0,0.34597127]
[1743082209935,0.57166961,86281.0,86273.0,0.41366679]
[1743082209936,0.115919,86274.0,86273.0,0.41366679]
[1743082210135,0.47791901,86274.0,86273.0,0.41426679]
[1743082210436,0.1159271,86268.0,86267.0,0.0936]
[1743082210629,0.1172471,86268.0,86267.0,0.0942]
[1743082211035,0.1159365,86261.0,86260.0,8e-05]
[1743082211237,0.1159378,86260.0,86259.0,0.00017381]
[1743082211451,0.00152,86260.0,86259.0,0.11611301]
[1743082211737,0.1159326,86264.0,86263.0,0.1159324]
[1743082212038,0.11749261,86264.0,86263.0,0.1159324]
[1743082212234,0.057968,86262.0,86259.0,0.00017381]
[1743082212534,0.1159378,86260.0,86259.0,0.00017381]
[1743082212737,0.1174578,86260.0,86259.0,0.00017381]
[1743082212939,0.00152,86260.0,86259.0,0.47691301]
[1743082213234,0.1,86261.0,86260.0,0.1159378]
[1743082213439,0.5794374,86298.0,86260.0,0.1159378]
[1743082213440,0.11609131,86276.0,86275.0,0.1159177]
[1743082213735,0.11761131,86276.0,86275.0,0.1159177]
[1743082213940,0.00169381,86276.0,86275.0,0.1159177]
[1743082214146,0.1158908,86295.0,86294.0,0.0579458]
[1743082214326,0.00108,86303.0,86302.0,0.1158814]
[1743082214532,0.00104001,86303.0,86302.0,0.4187404]
[1743082214734,0.1738175,86307.0,86306.0,0.0579377]
[1743082214937,0.0579349,86311.0,86302.0,0.2608]
[1743082215237,0.0579349,86311.0,86298.0,0.12784]
[1743082215238,0.1158854,86299.0,86298.0,0.11605591]
[1743082215445,0.00140001,86299.0,86298.0,0.23253811]
[1743082215642,0.3608,86306.0,86305.0,0.1158774]
[1743082215936,0.5925393,86313.0,86310.0,0.0579347]
[1743082216146,0.00148,86313.0,86312.0,0.115868]
[1743082216335,0.3608,86340.0,86337.0,0.1158317]
[1743082216536,0.3608,86340.0,86335.0,0.057918]
[1743082216537,0.1158358,86336.0,86335.0,0.057918]
[1743082216837,0.11679581,86336.0,86335.0,0.0006]
[1743082217035,0.10096001,86336.0,86335.0,0.1158371]
[1743082217340,0.3608,86364.0,86335.0,0.1506]
[1743082217542,0.00068,86364.0,86363.0,0.1157995]
[1743082217738,0.00068,86364.0,86363.0,0.1163995]
[1743082217937,0.16909353,86368.0,86367.0,0.1157942]
[1743082218142,0.16977353,86368.0,86367.0,0.1164742]
[1743082218338,0.00068,86368.0,86367.0,0.1164742]
[1743082218641,0.00017368,86372.0,86371.0,0.1157888]
[1743082218843,0.00017368,86372.0,86371.0,0.2445088]
[1743082219042,0.3608,86379.0,86378.0,0.1157794]
[1743082219243,0.0578863,86383.0,86382.0,0.1157741]
[1743082219447,0.1562812,86391.0,86387.0,0.1157674]
[1743082219448,0.0578818,86390.0,86387.0,0.1157674]
[1743082219643,0.36148,86388.0,86387.0,0.1157674]
[1743082219945,0.36216,86388.0,86387.0,0.1164474]
[1743082220131,0.477246,86388.0,86387.0,0.1164474]
[1743082220335,0.477246,86388.0,86387.0,0.00068]
[1743082220537,0.477246,86388.0,86387.0,0.1164474]
[1743082220745,0.577246,86388.0,86387.0,0.1164474]
[1743082220940,0.582246,86388.0,86387.0,0.00068]
[1743082221148,0.1736559,86387.0,86386.0,0.1157682]
[1743082221346,0.1157714,86384.0,86383.0,0.1278]
[1743082221544,0.1157714,86384.0,86383.0,0.00068]
[1743082221740,0.0578875,86382.0,86379.0,0.00017368]
[1743082222041,0.00068,86382.0,86381.0,0.1157754]
[1743082222247,0.009,86388.0,86385.0,0.0578845]
[1743082222447,0.009,86388.0,86387.0,0.1157674]
[1743082222640,0.009,86388.0,86387.0,0.1164874]
[1743082222641,0.005,86388.0,86387.0,0.1164874]
[1743082223337,0.1,86400.0,86395.0,0.1157566]
[1743082223539,0.1,86400.0,86395.0,0.1165166]
[1743082223540,0.00085357,86396.0,86395.0,0.1165166]
[1743082223945,0.1,86400.0,86399.0,0.1157513]
[1743082224250,0.10088001,86400.0,86399.0,0.2443913]
[1743082224737,0.20088001,86400.0,86399.0,0.2443913]
[1743082225134,0.20088001,86400.0,86399.0,0.1166713]
[1743082225544,0.20388001,86400.0,86399.0,0.1166713]
[1743082225938,0.20688001,86400.0,86399.0,0.1166713]
[1743082227940,0.20688001,86400.0,86399.0,0.2088713]
[1743082229845,0.1157861,86380.0,86379.0,0.00017368]
[1743082230049,0.00060001,86380.0,86379.0,0.17385458]
[1743082230254,0.3608,86399.0,86386.0,0.0578892]
[1743082230446,0.0986,86398.0,86397.0,0.1157642]
[1743082230657,0.00060001,86398.0,86397.0,0.1163642]
[1743082230847,0.00060001,86398.0,86397.0,0.0006]
[1743082231040,0.00060001,86398.0,86397.0,0.1163642]
[1743082231244,0.00060001,86398.0,86397.0,0.2156642]
[1743082232251,0.00260001,86398.0,86397.0,0.2156642]
[1743082232750,0.102,86398.0,86397.0,0.2156642]
[1743082232952,0.46340001,86398.0,86397.0,0.1163642]
[1743082233554,0.46540001,86398.0,86397.0,0.1163642]
[1743082233963,0.67806421,86398.0,86397.0,0.0006]
[1743082234143,0.1157669,86396.0,86395.0,0.0578829]
[1743082234347,0.0578841,86395.0,86388.0,8e-05]
[1743082234645,0.0578841,86395.0,86388.0,0.173742]
[1743082234646,0.4765763,86389.0,86388.0,0.173742]
[1743082234843,0.4772163,86389.0,86388.0,0.1566877]
[1743082235045,0.4772163,86389.0,86388.0,0.0988]
[1743082235243,0.1157883,86380.0,86379.0,0.00025368]
[1743082235549,0.4772683,86380.0,86379.0,0.00085368]
[1743082235758,0.4772683,86380.0,86379.0,0.00017368]
[1743082235943,0.0578997,86372.0,86369.0,0.1736997]
[1743082236148,0.4766004,86371.0,86370.0,0.1158017]
[1743082236453,0.4772804,86371.0,86370.0,0.2146017]
[1743082236658,0.6727804,86371.0,86370.0,0.2146017]
[1743082236852,0.6727804,86371.0,86370.0,0.0006]
[1743082237050,0.1158098,86364.0,86363.0,0.0579055]
[1743082237253,0.4772898,86364.0,86363.0,0.0585055]
[1743082237443,0.00068,86364.0,86363.0,0.0585055]
[1743082237645,0.0579041,86366.0,86363.0,0.1007]
[1743082237858,0.3133084,86365.0,86364.0,0.1158098]
[1743082238061,0.31390841,86365.0,86364.0,0.1164898]
[1743082238565,0.31390841,86365.0,86364.0,0.2165898]
[1743082239354,0.41690841,86365.0,86364.0,0.2165898]
[1743082239857,0.41890841,86365.0,86364.0,0.1164898]
[1743082240057,0.41890841,86365.0,86364.0,0.1158098]
[1743082240252,0.10560001,86365.0,86364.0,0.1164098]
[1743082240554,0.27390351,86400.0,86364.0,0.27856]
[1743082240555,0.1,86400.0,86364.0,0.27856]
[1743082240865,0.1736658,86390.0,86389.0,0.1157736]
[1743082241053,0.4186862,86392.0,86391.0,0.1157736]
[1743082241255,0.3616,86392.0,86391.0,0.1165736]
[1743082241764,0.4616,86392.0,86391.0,0.2099736]
[1743082242554,0.1008,86392.0,86391.0,0.2099736]
[1743082242759,0.102,86392.0,86391.0,0.2099736]
[1743082244263,0.104,86392.0,86391.0,0.2099736]
[1743082245063,0.1048,86392.0,86391.0,0.2099736]
[1743082245265,0.2957,86392.0,86391.0,0.2099736]
[1743082245558,0.4114722,86392.0,86391.0,0.0008]
[1743082245760,0.1157801,86387.0,86380.0,0.22302]
[1743082246063,0.1914,86386.0,86385.0,0.1157816]
[1743082246265,0.4648,86392.0,86390.0,0.1157736]
[1743082246266,0.1157739,86391.0,86390.0,0.1157736]
[1743082246557,0.2110139,86391.0,86390.0,0.1165736]
[1743082246759,0.3080139,86391.0,86390.0,0.0008]
[1743082246956,0.115783,86384.0,86383.0,0.11595798]
[1743082247260,0.36164,86384.0,86383.0,0.11675798]
[1743082247457,0.36164,86384.0,86383.0,0.21685798]
[1743082247660,0.36164,86384.0,86383.0,0.34501798]
[1743082248553,0.00084,86384.0,86383.0,0.34501798]
[1743082248757,0.3608,86401.0,86399.0,0.1157629]
[1743082248951,0.1008,86400.0,86399.0,0.1165629]
[1743082250055,0.21766015,86400.0,86399.0,0.1165629]
[1743082250452,0.13587561,86402.0,86399.0,0.1165629]
[1743082250453,0.13587561,86402.0,86401.0,0.1157602]
[1743082250655,0.0949,86419.0,86411.0,0.1157468]
[1743082250860,0.0995,86423.0,86422.0,0.1157321]
[1743082251065,0.0995,86432.0,86431.0,0.11572]
[1743082251373,0.21633871,86432.0,86431.0,0.11676]
[1743082251558,0.31123871,86432.0,86431.0,0.11676]
[1743082251757,0.41123871,86432.0,86431.0,0.11676]
[1743082252771,0.41723871,86432.0,86431.0,0.11676]
[1743082253668,0.42223871,86432.0,86431.0,0.11676]
[1743082254773,0.30652001,86432.0,86431.0,0.11676]
[1743082254968,0.20702001,86432.0,86431.0,0.11676]
[1743082255672,0.11212001,86432.0,86431.0,0.11676]
[1743082257259,0.22783871,86432.0,86431.0,0.11676]
[1743082257460,0.11212001,86432.0,86431.0,0.11676]
[1743082257770,0.3608,86453.0,86452.0,0.1156919]
[1743082257971,0.3143764,86464.0,86463.0,0.1156772]
[1743082258271,0.3157364,86464.0,86463.0,0.1170372]
[1743082258470,0.00136,86464.0,86463.0,0.1156772]
[1743082258662,0.1170358,86464.0,86463.0,0.1170372]
[1743082258864,0.23241213,86464.0,86463.0,0.00136]
[1743082259068,0.1156852,86458.0,86457.0,0.0578426]
[1743082259374,0.1156852,86458.0,86457.0,0.0592426]
[1743082259375,0.00136,86458.0,86457.0,0.0592426]
[1743082259567,0.19966,86458.0,86457.0,0.0592426]
[1743082259765,0.29966,86458.0,86457.0,0.0592426]
[1743082260075,0.10136,86458.0,86457.0,0.0592426]
[1743082260261,0.1,86458.0,86457.0,0.0592426]
[1743082260658,0.2170439,86458.0,86457.0,0.0014]
[1743082260872,0.2170439,86458.0,86457.0,0.1170852]
[1743082261068,0.2220439,86458.0,86457.0,0.0024]
[1743082261262,0.2220439,86458.0,86444.0,0.00025358]
[1743082261263,0.1157013,86445.0,86444.0,0.00025358]
[1743082261580,0.83790131,86445.0,86444.0,0.00017358]
[1743082261780,0.1735734,86436.0,86435.0,0.1157924]
[1743082262069,0.53577341,86436.0,86435.0,0.0014]
[1743082262371,0.057862,86428.0,86421.0,8e-05]
[1743082262573,0.0578674,86420.0,86407.0,0.00136]
[1743082262779,0.3608,86415.0,86414.0,0.1157428]
[1743082262964,0.36992396,86415.0,86414.0,0.1171028]
[1743082263277,0.37136396,86415.0,86414.0,0.1171028]
[1743082263472,0.37136396,86415.0,86414.0,0.00136]
[1743082263672,0.68460536,86415.0,86414.0,0.00136]
[1743082263865,0.1157428,86414.0,86413.0,0.34134783]
[1743082264066,0.12582677,86414.0,86413.0,0.34230783]
[1743082264271,0.31902677,86414.0,86413.0,0.34230783]
[1743082264474,0.31902677,86414.0,86370.0,8e-05]
[1743082264475,0.35328397,86414.0,86370.0,8e-05]
[1743082264679,0.4725696,86394.0,86393.0,0.59889982]
[1743082264876,0.60993356,86394.0,86393.0,0.59889982]
[1743082265071,0.37060396,86394.0,86393.0,0.59889982]
[1743082265574,0.3608,86442.0,86393.0,1.18673092]
[1743082265774,0.0578667,86421.0,86417.0,0.1157382]
[1743082265975,0.1157374,86418.0,86417.0,0.1166182]
[1743082266170,0.1948,86420.0,86419.0,0.1157361]
[1743082266377,0.19568001,86420.0,86419.0,0.1166161]
[1743082266877,0.31141471,86420.0,86419.0,0.00088]
[1743082267075,0.1157454,86412.0,86411.0,8e-05]
[1743082267272,0.24442541,86412.0,86411.0,0.00088]
[1743082267473,0.1157468,86411.0,86402.0,0.3608]
[1743082267670,0.31674681,86411.0,86406.0,0.1157527]
[1743082268079,0.31674681,86411.0,86402.0,0.3608]
[1743082268375,0.46674681,86411.0,86402.0,0.3608]
[1743082268575,0.1157588,86402.0,86401.0,8e-05]
[1743082268775,0.1157669,86396.0,86395.0,0.534446]
[1743082268977,0.11636691,86396.0,86395.0,0.535126]
[1743082269179,0.00060001,86396.0,86395.0,0.535126]
[1743082269381,0.22756,86402.0,86401.0,0.1157602]
[1743082269382,0.1,86402.0,86401.0,0.1157602]
[1743082269583,0.10088,86402.0,86401.0,0.1166002]
[1743082269875,0.003,86411.0,86410.0,0.1157481]
[1743082270080,0.1157102,86439.0,86410.0,0.3616]
[1743082270279,0.12768,86457.0,86438.0,0.3608]
[1743082270475,0.1156876,86456.0,86445.0,0.3608]
[1743082270790,0.1156972,86448.0,86447.0,0.1735459]
[1743082271075,0.0578456,86453.0,86452.0,0.1156879]
[1743082271276,0.1156878,86456.0,86455.0,0.1156865]
[1743082271582,0.1156878,86456.0,86453.0,0.0578447]
[1743082271583,0.09896,86453.0,86429.0,0.0578609]
[1743082271774,0.1157039,86443.0,86442.0,0.23245678]
[1743082271974,0.00060001,86443.0,86442.0,0.33435678]
[1743082272173,0.2666513,86446.0,86445.0,0.1157013]
[1743082272371,0.1157039,86443.0,86442.0,0.10215358]
[1743082272573,0.1164239,86443.0,86442.0,0.00097358]
[1743082272772,0.1164239,86443.0,86442.0,0.00089358]
[1743082273676,0.2153839,86443.0,86442.0,0.00089358]
[1743082273870,0.7044239,86443.0,86442.0,8e-08]
[1743082274076,0.115712,86437.0,86436.0,8e-05]
[1743082274272,0.1735817,86431.0,86430.0,0.115718]
[1743082274476,0.00064,86437.0,86435.0,0.1157133]
[1743082274785,0.10096,86443.0,86442.0,0.1157053]
[1743082275075,0.00264,86443.0,86442.0,0.0006]
[1743082275280,0.00064,86443.0,86442.0,0.3073053]
[1743082275481,0.1157039,86443.0,86442.0,0.3073053]
[1743082275676,0.1163839,86443.0,86442.0,0.3073053]
[1743082275866,0.00068,86443.0,86442.0,0.6681053]
[1743082276072,0.0578386,86464.0,86461.0,0.1156772]
[1743082276380,0.1156812,86461.0,86460.0,0.2096808]
[1743082276577,0.0004,86465.0,86464.0,0.1156758]
[1743082276784,0.00104,86465.0,86464.0,0.1156758]
[1743082276983,0.0004,86465.0,86464.0,0.3072758]
[1743082277881,0.1004,86465.0,86464.0,0.3072758]
[1743082278182,0.1602296,86477.0,86464.0,0.3072758]